fUST/lending_fUST_20250207
["ID","MTS","AMOUNT","RATE_DAILY","PERIOD"]
[352046719,1738899043653,-500.0,0.0001452,2]
[352046720,1738899043667,-618.8,0.0001452,2]
[352046721,1738899043677,-500.0,0.0001452,2]
[352046722,1738899043686,-598.82,0.0001452,2]
[352046723,1738899043699,-500.0,0.0001452,2]
[352046724,1738899043709,-500.0,0.0001452,2]
[352046725,1738899043719,-500.0,0.0001452,2]
[352046726,1738899043730,-2544.73,0.0001452,2]
[352046727,1738899043740,-532.44,0.0001452,2]
[352046728,1738899043751,-500.0,0.0001452,2]
[352046729,1738899043762,-3244.38,0.0001452,2]
[352046730,1738899043772,-694.93,0.0001452,2]
[352046731,1738899043783,-918.93,0.0001452,2]
[352046732,1738899043793,-500.0,0.0001452,2]
[352046733,1738899043803,-1000.0,0.00014521,2]
[352046734,1738899043813,-600.0,0.0001455,2]
[352046735,1738899043823,-1163.77342583,0.00014555,2]
[352046736,1738899043832,-563.0,0.000146,5]
[352046737,1738899043843,-187.505,0.00014626,2]
[352046738,1738899043853,-150.0,0.00014626,2]
[352046739,1738899043863,-150.028,0.00014626,2]
[352046740,1738899043873,-827.896,0.00014639,2]
[352046741,1738899043882,-271.03152097,0.00014641,2]
[352046742,1738899043890,-1163.77342583,0.00014655,2]
[352046743,1738899043897,-500.0,0.00014657,2]
[352046744,1738899043904,-618.8,0.00014657,2]
[352046745,1738899043912,-500.0,0.00014657,2]
[352046746,1738899043922,-598.82,0.00014657,2]
[352046747,1738899043932,-500.0,0.00014657,2]
[352046748,1738899043948,-500.0,0.00014657,2]
[352046749,1738899043962,-500.0,0.00014657,2]
[352046750,1738899043971,-2544.73,0.00014657,2]
[352046751,1738899043981,-532.44,0.00014657,2]
[352046752,1738899043991,-500.0,0.00014657,2]
[352046753,1738899044001,-3244.38,0.00014657,2]
[352046754,1738899044011,-694.93,0.00014657,2]
[352046755,1738899044022,-918.93,0.00014657,2]
[352046756,1738899044031,-500.0,0.00014657,2]
[352046757,1738899044041,-600.0,0.000147,2]
[352046758,1738899044051,-336.0,0.0001471,2]
[352046759,1738899044061,-503.3382509,0.00014744,2]
[352046760,1738899044071,-1163.77342583,0.00014755,2]
[352046761,1738899044080,-1000.0,0.00014779,2]
[352046762,1738899044090,-508.06989953,0.00014779,2]
[352046763,1738899044100,-500.0,0.00014794,2]
[352046764,1738899044109,-618.8,0.00014794,2]
[352046765,1738899044119,-500.0,0.00014794,2]
[352046766,1738899044129,-598.82,0.00014794,2]
[352046767,1738899044139,-500.0,0.00014794,2]
[352046768,1738899044148,-500.0,0.00014794,2]
[352046769,1738899044158,-500.0,0.00014794,2]
[352046770,1738899044167,-2544.73,0.00014794,2]
[352046771,1738899044177,-532.44,0.00014794,2]
[352046772,1738899044187,-500.0,0.00014794,2]
[352046773,1738899044198,-3244.38,0.00014794,2]
[352046774,1738899044208,-694.93,0.00014794,2]
[352046775,1738899044217,-918.93,0.00014794,2]
[352046776,1738899044227,-500.0,0.00014794,2]
[352046777,1738899044237,-1500.0,0.00014795,2]
[352046778,1738899044247,-1000.0,0.000148,2]
[352046779,1738899044257,-1000.0,0.000148,3]
[352046780,1738899044266,-1012.19,0.000148,4]
[352046781,1738899044275,-1000.0,0.00014824,2]
[352046782,1738899044284,-630.73164601,0.00014827,2]
[352046783,1738899044294,-511.040584,0.00014849,2]
[352046784,1738899044304,-719.71578687,0.0001485,2]
[352046785,1738899044314,-1163.77342583,0.00014855,2]
[352046786,1738899044323,-1000.0,0.00014858,2]
[352046787,1738899044334,-155.0,0.00014899,2]
[352046788,1738899044344,-190.4,0.00014909,2]
[352046789,1738899044353,-154.0,0.00014909,2]
[352046790,1738899044364,-154.0,0.00014909,2]
[352046791,1738899044373,-154.0,0.00014909,2]
[352046792,1738899044384,-154.0,0.00014909,2]
[352046793,1738899044394,-154.0,0.00014909,2]
[352046794,1738899044403,-154.0,0.00014909,2]
[352046795,1738899044414,-154.0,0.00014909,2]
[352046796,1738899044423,-154.0,0.00014909,2]
[352046797,1738899044433,-154.0,0.00014909,2]
[352046798,1738899044445,-154.0,0.00014909,2]
[352046799,1738899044455,-154.0,0.00014909,2]
[352046800,1738899044465,-154.0,0.00014909,2]
[352046801,1738899044475,-154.0,0.00014909,2]
[352046802,1738899044485,-154.0,0.00014909,2]
[352046803,1738899044494,-154.0,0.00014909,2]
[352046804,1738899044504,-154.0,0.00014909,2]
[352046805,1738899044514,-154.0,0.00014909,2]
[352046806,1738899044524,-154.0,0.00014909,2]
[352046807,1738899044533,-154.0,0.00014909,2]
[352046808,1738899044543,-154.0,0.00014909,2]
[352046809,1738899044553,-270.56,0.00014909,2]
[352046810,1738899044563,-22603.54925277,0.00014917,2]
[352046811,1738899044573,-476.69273039,0.00014918,2]
[352046812,1738899044582,-649.34518297,0.00014931,2]
[352046813,1738899044592,-618.8,0.00014931,2]
[352046814,1738899044602,-500.0,0.00014931,2]
[352046815,1738899044612,-598.82,0.00014931,2]
[352046816,1738899044622,-500.0,0.00014931,2]
[352046817,1738899044631,-500.0,0.00014931,2]
[352046818,1738899044640,-170.51306883,0.00014931,2]
[352046819,1738899044651,-2544.73,0.00014931,2]
[352046820,1738899044662,-532.44,0.00014931,2]
[352046821,1738899044671,-500.0,0.00014931,2]
[352046822,1738899044680,-3244.38,0.00014931,2]
[352046823,1738899044690,-694.93,0.00014931,2]
[352046824,1738899044701,-918.93,0.00014931,2]
[352046825,1738899044710,-327.55500614,0.00014931,2]
[352046826,1738899044719,-1200.0,0.00014955,2]
[352046827,1738899044730,-1163.77342583,0.00014955,2]
[352046828,1738899044740,-83877.1423114,0.0001496,2]
[352046829,1738899044749,-225.22,0.00014971,2]
[352046830,1738899044760,-500.90251197,0.00014973,2]
[352046831,1738899044769,-500.0,0.00014973,2]
[352046832,1738899044780,-500.0,0.00014973,2]
[352046833,1738899044790,-939.0,0.0001498,2]
[352046834,1738899044800,-152.0,0.00014986,2]
[352046835,1738899044816,-152.0,0.00014986,2]
[352046836,1738899044827,-152.0,0.00014986,2]
[352046837,1738899044836,-152.0,0.00014986,2]
[352046838,1738899044846,-152.0,0.00014986,2]
[352046839,1738899044856,-152.0,0.00014986,2]
[352046840,1738899044866,-152.0,0.00014986,2]
[352046841,1738899044876,-152.0,0.00014986,2]
[352046842,1738899044885,-152.0,0.00014986,2]
[352046843,1738899044895,-152.0,0.00014986,2]
[352046844,1738899044904,-152.0,0.00014986,2]
[352046845,1738899044914,-152.0,0.00014986,2]
[352046846,1738899044924,-152.0,0.00014986,2]
[352046847,1738899044934,-152.0,0.00014986,2]
[352046848,1738899044945,-152.0,0.00014986,2]
[352046849,1738899044955,-152.0,0.00014986,2]
[352046850,1738899044969,-152.0,0.00014986,2]
[352046851,1738899044985,-152.0,0.00014986,2]
[352046852,1738899044995,-152.0,0.00014986,2]
[352046853,1738899045005,-152.0,0.00014986,2]
[352046854,1738899045015,-280.46,0.00014986,2]
[352046855,1738899045024,-154.0,0.00014986,2]
[352046856,1738899045033,-154.0,0.00014986,2]
[352046857,1738899045043,-154.0,0.00014986,2]
[352046858,1738899045053,-154.0,0.00014986,2]
[352046859,1738899045063,-154.0,0.00014986,2]
[352046860,1738899045073,-154.0,0.00014986,2]
[352046861,1738899045082,-154.0,0.00014986,2]
[352046862,1738899045091,-154.0,0.00014986,2]
[352046863,1738899045100,-154.0,0.00014986,2]
[352046864,1738899045110,-154.0,0.00014986,2]
[352046865,1738899045120,-154.0,0.00014986,2]
[352046866,1738899045131,-154.0,0.00014986,2]
[352046867,1738899045142,-154.0,0.00014986,2]
[352046868,1738899045152,-154.0,0.00014986,2]
[352046869,1738899045162,-154.0,0.00014986,2]
[352046870,1738899045171,-154.0,0.00014986,2]
[352046871,1738899045181,-154.0,0.00014986,2]
[352046872,1738899045191,-154.0,0.00014986,2]
[352046873,1738899045201,-216.42,0.00014986,2]
[352046874,1738899045211,-274397.13345567,0.00015,30]
[352046875,1738899045222,-2000.0,0.00015,2]
[352046876,1738899045233,-2000.0,0.00015,2]
[352046877,1738899045243,-3000.0,0.00015,30]
[352046878,1738899045252,-500.0,0.00015,2]
[352046879,1738899045262,-450.34882359,0.00015,2]
[352046880,1738899045272,-160.79202925,0.00015,5]
[352046881,1738899045282,-141971.54961646,0.00015,30]
[352046882,1738899045292,-226.91981788,0.00015,2]
[352046883,1738899045302,-226.91981788,0.00015,2]
[352046884,1738899045312,-226.91981788,0.00015,2]
[352046885,1738899045321,-226.91981788,0.00015,2]
[352046886,1738899045332,-226.91981788,0.00015,2]
[352046887,1738899045342,-226.91981788,0.00015,2]
[352046888,1738899045353,-226.91981788,0.00015,2]
[352046889,1738899045363,-226.91981788,0.00015,2]
[352046890,1738899045373,-226.91981788,0.00015,2]
[352046891,1738899045383,-226.91981788,0.00015,2]
[352046892,1738899045393,-226.91981788,0.00015,2]
[352046893,1738899045403,-226.91981788,0.00015,2]
[352046894,1738899045413,-226.91981788,0.00015,2]
[352046895,1738899045423,-226.91981788,0.00015,2]
[352046896,1738899045433,-226.91981788,0.00015,2]
[352046897,1738899045445,-226.91981788,0.00015,2]
[352046898,1738899045455,-12.46563003,0.00015,2]
[352046899,1738899045576,-515.41015551,0.00013698,2]
[352046900,1738899045587,-214.45418785,0.00015,2]
[352046901,1738899045597,-226.91981788,0.00015,2]
[352046902,1738899045607,-226.91981788,0.00015,2]
[352046903,1738899045617,-226.91,0.00015,2]
[352046904,1738899045627,-38.20689073,0.0001501,30]
[352046905,1738899045640,-1014.47158201,0.0001501,30]
[352046906,1738899045653,-1947.32152726,0.0001501,30]
[352046907,1738899045665,-3000.0,0.0001502,30]
[352046908,1738899045675,-3000.0,0.0001503,30]
[352046909,1738899045685,-5481.959449,0.0001504,30]
[352046910,1738899045696,-1163.77342583,0.00015055,2]
[352046911,1738899045706,-618.8,0.00015068,2]
[352046912,1738899045716,-500.0,0.00015068,2]
[352046913,1738899045726,-598.82,0.00015068,2]
[352046914,1738899045736,-500.0,0.00015068,2]
[352046915,1738899045746,-500.0,0.00015068,2]
[352046916,1738899045757,-2544.73,0.00015068,2]
[352046917,1738899045767,-532.44,0.00015068,2]
[352046918,1738899045777,-500.0,0.00015068,2]
[352046919,1738899045787,-3244.38,0.00015068,2]
[352046920,1738899045797,-694.93,0.00015068,2]
[352046921,1738899045807,-918.93,0.00015068,2]
[352046923,1738899045817,-166.0,0.00015068,2]
[352046924,1738899045826,-2000.0,0.00015068,2]
[352046925,1738899045836,-4525.75,0.000151,5]
[352046926,1738899045846,-1163.77342583,0.00015155,2]
[352046927,1738899045856,-500.0,0.00015189,2]
[352046928,1738899045866,-150.21,0.00015189,2]
[352046929,1738899045993,-500.0,0.00015189,2]
[352046930,1738899046007,-150.21,0.00015189,2]
[352046931,1738899046018,-500.0,0.00015189,2]
[352046932,1738899046029,-500.0,0.00015189,2]
[352046933,1738899046039,-150.21,0.00015189,2]
[352046934,1738899046049,-150.21,0.00015189,2]
[352046935,1738899046059,-150.21,0.00015189,2]
[352046936,1738899046069,-150.25010098,0.00015189,2]
[352046937,1738899046079,-150.25553326,0.00015189,2]
[352046938,1738899046089,-500.0,0.00015189,2]
[352046939,1738899046099,-500.0,0.00015189,2]
[352046940,1738899046110,-150.21,0.00015189,2]
[352046941,1738899046120,-150.25531173,0.00015189,2]
[352046942,1738899046130,-707.0,0.00015189,2]
[352046943,1738899046139,-150.21,0.00015189,2]
[352046944,1738899046150,-150.21,0.00015189,2]
[352046945,1738899046160,-5000.0,0.00015189,2]
[352046946,1738899046170,-5000.0,0.00015189,2]
[352046947,1738899046183,-5000.0,0.00015189,2]
[352046948,1738899046196,-5000.0,0.00015189,2]
[352046949,1738899046207,-5000.0,0.00015189,2]
[352046950,1738899046217,-618.8,0.00015205,2]
[352046951,1738899046227,-500.0,0.00015205,2]
[352046952,1738899046237,-598.82,0.00015205,2]
[352046953,1738899046247,-500.0,0.00015205,2]
[352046954,1738899046258,-2544.73,0.00015205,2]
[352046955,1738899046268,-532.44,0.00015205,2]
[352046956,1738899046279,-500.0,0.00015205,2]
[352046957,1738899046289,-3244.38,0.00015205,2]
[352046958,1738899046299,-694.93,0.00015205,2]
[352046959,1738899046309,-918.93,0.00015205,2]
[352046960,1738899046319,-5000.0,0.00015209,2]
[352046961,1738899046329,-5000.0,0.00015209,2]
[352046962,1738899046339,-5000.0,0.00015209,2]
[352046963,1738899046348,-5000.0,0.00015209,2]
[352046964,1738899046358,-5000.0,0.00015209,2]
[352046965,1738899046368,-5332.09404306,0.00015209,2]
[352046966,1738899046378,-9937.93708774,0.00015212,2]
[352046967,1738899046388,-5021.57840963,0.00015216,2]
[352046968,1738899046398,-5216.26383164,0.00015219,2]
[352046969,1738899046409,-5000.0,0.00015219,2]
[352046970,1738899046419,-5000.0,0.00015219,2]
[352046971,1738899046429,-5000.0,0.00015219,2]
[352046972,1738899046438,-5000.0,0.00015219,2]
[352046973,1738899046451,-5000.0,0.00015219,2]
[352046974,1738899046461,-6995.81486199,0.00015219,2]
[352046975,1738899046472,-5000.0,0.00015219,2]
[352046976,1738899046482,-5000.0,0.00015219,2]
[352046977,1738899046492,-5000.0,0.00015219,2]
[352046978,1738899046502,-5000.0,0.00015219,2]
[352046979,1738899046512,-1163.77342583,0.00015255,2]
[352046980,1738899046522,-618.8,0.00015342,2]
[352046981,1738899046537,-500.0,0.00015342,2]
[352046982,1738899046547,-598.82,0.00015342,2]
[352046983,1738899046558,-500.0,0.00015342,2]
[352046984,1738899046568,-2544.73,0.00015342,2]
[352046985,1738899046579,-532.44,0.00015342,2]
[352046986,1738899046589,-500.0,0.00015342,2]
[352046987,1738899046599,-3244.38,0.00015342,2]
[352046988,1738899046610,-694.93,0.00015342,2]
[352046989,1738899046620,-918.93,0.00015342,2]
[352046990,1738899046630,-2500.0,0.00015342,2]
[352046991,1738899046640,-1163.77342583,0.00015355,2]
[352046992,1738899046650,-46728.27807941,0.00015408,2]
[352046993,1738899046663,-630.73164601,0.00015442,2]
[352046994,1738899046673,-1163.77342583,0.00015455,2]
[352046995,1738899046684,-500.0,0.00015463,2]
[352046996,1738899046695,-500.488062,0.00015463,2]
[352046997,1738899046705,-150.21,0.00015463,2]
[352046998,1738899046715,-500.0,0.00015463,2]
[352046999,1738899046725,-500.0,0.00015463,2]
[352047000,1738899046735,-150.21,0.00015463,2]
[352047001,1738899046745,-150.26712793,0.00015463,2]
[352047002,1738899046755,-150.39771863,0.00015463,2]
[352047003,1738899046765,-500.0,0.00015463,2]
[352047004,1738899046775,-500.0,0.00015463,2]
[352047005,1738899046787,-707.0,0.00015463,2]
[352047006,1738899046803,-150.21,0.00015463,2]
[352047007,1738899046814,-618.8,0.00015479,2]
[352047008,1738899046824,-239.49688769,0.00015479,2]
[352047009,1738899046834,-598.82,0.00015479,2]
[352047010,1738899046843,-500.0,0.00015479,2]
[352047011,1738899046853,-2544.73,0.00015479,2]
[352047012,1738899046864,-532.44,0.00015479,2]
[352047013,1738899046874,-401.33647403,0.00015479,2]
[352047014,1738899046885,-3244.38,0.00015479,2]
[352047015,1738899046895,-694.93,0.00015479,2]
[352047016,1738899046904,-918.93,0.00015479,2]
[352047017,1738899046914,-388.50108865,0.000155,2]
[352047018,1738899046924,-1003.70389752,0.00015521,2]
[352047019,1738899046934,-1000.0,0.00015521,2]
[352047020,1738899046944,-1163.77342583,0.00015555,2]
[352047021,1738899046954,-618.8,0.00015616,2]
[352047022,1738899046964,-598.82,0.00015616,2]
[352047023,1738899046974,-500.0,0.00015616,2]
[352047024,1738899046984,-2544.73,0.00015616,2]
[352047025,1738899046994,-532.44,0.00015616,2]
[352047026,1738899047004,-3244.38,0.00015616,2]
[352047027,1738899047014,-694.93,0.00015616,2]
[352047028,1738899047023,-918.93,0.00015616,2]
[352047029,1738899047033,-3000.0,0.00015616,2]
[352047030,1738899047043,-1163.77342583,0.00015655,2]
[352047031,1738899047053,-465.58463652,0.00015664,2]
[352047032,1738899047063,-500.0,0.00015737,2]
[352047033,1738899047073,-204.20959178,0.00015737,2]
[352047034,1738899047083,-500.0,0.00015737,2]
[352047035,1738899047092,-500.0,0.00015737,2]
[352047036,1738899047102,-199.93824663,0.00015737,2]
[352047037,1738899047112,-500.0,0.00015737,2]
[352047038,1738899047123,-686.377518,0.00015737,2]
[352047039,1738899047134,-707.0,0.00015737,2]
[352047040,1738899047144,-199.94358736,0.00015737,2]
[352047041,1738899047153,-618.8,0.00015753,2]
[352047042,1738899047163,-598.82,0.00015753,2]
[352047043,1738899047172,-500.0,0.00015753,2]
[352047044,1738899047182,-2544.73,0.00015753,2]
[352047045,1738899047192,-532.44,0.00015753,2]
[352047046,1738899047203,-3244.38,0.00015753,2]
[352047047,1738899047213,-694.93,0.00015753,2]
[352047048,1738899047223,-918.93,0.00015753,2]
[352047049,1738899047233,-1163.77342583,0.00015755,2]
[352047050,1738899047243,-2094.96901,0.00015763,2]
[352047051,1738899047253,-336.0,0.0001577,2]
[352047052,1738899047263,-1500.0,0.00015781,2]
[352047053,1738899047273,-151.0,0.000158,2]
[352047054,1738899047283,-6307.07017785,0.000158,2]
[352047055,1738899047293,-1386.4369534,0.00015826,2]
[352047056,1738899047303,-1163.77342583,0.00015855,2]
[352047057,1738899047313,-2950.0,0.00015873,2]
[352047058,1738899047323,-618.8,0.0001589,2]
[352047059,1738899047333,-598.82,0.0001589,2]
[352047060,1738899047343,-165.05043927,0.0001589,2]
[352047061,1738899047353,-2544.73,0.0001589,2]
[352047062,1738899047364,-532.44,0.0001589,2]
[352047063,1738899047375,-3244.38,0.0001589,2]
[352047064,1738899047386,-694.93,0.0001589,2]
[352047065,1738899047397,-918.93,0.0001589,2]
[352047066,1738899047408,-3500.0,0.0001589,2]
[352047067,1738899047419,-260700.23501129,0.000159,4]
[352047068,1738899047430,-151.0,0.000159,2]
[352047069,1738899047441,-151.0,0.000159,2]
[352047070,1738899047452,-151.0,0.000159,2]
[352047071,1738899047463,-151.0,0.000159,2]
[352047072,1738899047475,-151.0,0.000159,2]
[352047073,1738899047486,-151.0,0.000159,2]
[352047074,1738899047496,-151.0,0.000159,2]
[352047075,1738899047507,-151.0,0.000159,2]
[352047076,1738899047518,-1163.77342583,0.00015955,2]
[352047077,1738899047529,-9783.37724435,0.00015993,2]
[352047078,1738899047539,-85964.22230853,0.00016,7]
[352047079,1738899047551,-1846.41386972,0.00016,2]
[352047080,1738899047563,-189.0,0.00016,2]
[352047081,1738899047573,-11696.31190957,0.00016,2]
[352047082,1738899047584,-672.96572577,0.00016,2]
[352047083,1738899047595,-4764.23106202,0.00016,2]
[352047084,1738899047606,-150.99999901,0.00016,2]
[352047085,1738899047616,-2000.0,0.00016,2]
[352047086,1738899047625,-7762.53328359,0.00016,2]
[352047087,1738899047635,-3531.1976287,0.00016,2]
[352047088,1738899047647,-2000.0,0.00016,2]
[352047089,1738899047662,-3000.0,0.00016,2]
[352047090,1738899047673,-3000.0,0.0001601,2]
[352047091,1738899047684,-500.0,0.00016011,2]
[352047092,1738899047696,-500.0,0.00016011,2]
[352047093,1738899047706,-500.0,0.00016011,2]
[352047094,1738899047716,-500.0,0.00016011,2]
[352047095,1738899047727,-707.0,0.00016011,2]
[352047096,1738899047738,-3000.0,0.0001602,2]
[352047097,1738899047748,-618.8,0.00016027,2]
[352047098,1738899047758,-598.82,0.00016027,2]
[352047099,1738899047770,-2544.73,0.00016027,2]
[352047100,1738899047782,-532.44,0.00016027,2]
[352047101,1738899047794,-3244.38,0.00016027,2]
[352047102,1738899047805,-694.93,0.00016027,2]
[352047103,1738899047816,-918.93,0.00016027,2]
[352047104,1738899047826,-3000.0,0.0001603,2]
[352047105,1738899047836,-6307.07017783,0.00016033,2]
[352047106,1738899047850,-3000.0,0.0001604,2]
[352047107,1738899047860,-3000.0,0.0001605,2]
[352047108,1738899047871,-1163.77342583,0.00016055,2]
[352047109,1738899047882,-630.73164601,0.00016056,2]
[352047110,1738899047892,-3000.0,0.0001606,2]
[352047111,1738899047903,-3000.0,0.0001607,2]
[352047112,1738899047914,-3000.0,0.0001608,2]
[352047113,1738899047923,-3000.0,0.0001609,2]
[352047114,1738899047933,-3000.0,0.000161,2]
[352047115,1738899047944,-563.0,0.000161,6]
[352047116,1738899047955,-3000.0,0.0001611,2]
[352047117,1738899047965,-3000.0,0.0001612,2]
[352047118,1738899047975,-3000.0,0.0001613,2]
[352047119,1738899047985,-3000.0,0.0001614,2]
[352047120,1738899047996,-3000.0,0.0001615,2]
[352047121,1738899048007,-1163.77342583,0.00016155,2]
[352047122,1738899048019,-3000.0,0.0001616,2]
[352047123,1738899048029,-618.8,0.00016164,2]
[352047124,1738899048040,-783.22,0.00016164,2]
[352047125,1738899048050,-598.82,0.00016164,2]
[352047126,1738899048062,-2544.73,0.00016164,2]
[352047127,1738899048073,-532.44,0.00016164,2]
[352047128,1738899048084,-3244.38,0.00016164,2]
[352047129,1738899048095,-694.93,0.00016164,2]
[352047130,1738899048106,-918.93,0.00016164,2]
[352047131,1738899048117,-4000.0,0.00016164,2]
[352047132,1738899048128,-3000.0,0.0001617,2]
[352047133,1738899048139,-3000.0,0.0001618,2]
[352047134,1738899048152,-3000.0,0.0001619,2]
[352047135,1738899048168,-3000.0,0.000162,2]
[352047136,1738899048179,-3000.0,0.0001621,2]
[352047137,1738899048190,-3000.0,0.0001622,2]
[352047138,1738899048203,-3000.0,0.0001623,2]
[352047139,1738899048213,-3000.0,0.0001624,2]
[352047140,1738899048224,-3000.0,0.0001625,2]
[352047141,1738899048234,-1163.77342583,0.00016255,2]
[352047142,1738899048245,-3000.0,0.0001626,2]
[352047143,1738899048256,-6307.07017783,0.00016267,2]
[352047144,1738899048267,-3000.0,0.0001627,2]
[352047145,1738899048278,-3000.0,0.0001628,2]
[352047146,1738899048289,-500.0,0.00016285,2]
[352047147,1738899048300,-500.0,0.00016285,2]
[352047148,1738899048310,-501.70116908,0.00016285,2]
[352047149,1738899048320,-851.14895175,0.00016285,2]
[352047150,1738899048331,-707.0,0.00016285,2]
[352047151,1738899048341,-3000.0,0.0001629,2]
[352047152,1738899048352,-3000.0,0.000163,2]
[352047153,1738899048362,-618.8,0.00016301,2]
[352047154,1738899048373,-598.82,0.00016301,2]
[352047155,1738899048383,-2544.73,0.00016301,2]
[352047156,1738899048395,-532.44,0.00016301,2]
[352047157,1738899048406,-3244.38,0.00016301,2]
[352047158,1738899048417,-694.93,0.00016301,2]
[352047159,1738899048428,-151.0,0.00016301,2]
[352047160,1738899048440,-918.93,0.00016301,2]
[352047161,1738899048453,-3000.0,0.0001631,2]
[352047162,1738899048463,-3000.0,0.0001632,2]
[352047163,1738899048475,-3000.0,0.0001633,2]
[352047164,1738899048486,-151.0,0.0001633,2]
[352047165,1738899048496,-151.0,0.0001633,2]
[352047166,1738899048506,-151.0,0.0001633,2]
[352047167,1738899048516,-151.0,0.0001633,2]
[352047168,1738899048527,-152.29089,0.0001633,2]
[352047169,1738899048538,-151.0,0.0001633,2]
[352047170,1738899048550,-151.0,0.0001633,2]
[352047171,1738899048561,-151.482033,0.0001633,2]
[352047172,1738899048571,-151.0,0.0001633,2]
[352047173,1738899048614,-3000.0,0.0001634,2]
[352047174,1738899048626,-151.0,0.0001634,2]
[352047175,1738899048636,-151.0,0.0001634,2]
[352047176,1738899048646,-151.0,0.0001634,2]
[352047177,1738899048659,-151.0,0.0001634,2]
[352047178,1738899048670,-151.0,0.0001634,2]
[352047179,1738899048681,-151.0,0.0001634,2]
[352047180,1738899048693,-537.870803,0.0001634,2]
[352047181,1738899048703,-537.870803,0.0001634,2]
[352047182,1738899048713,-151.0,0.0001634,2]
[352047183,1738899048723,-151.0,0.0001634,2]
[352047184,1738899048733,-151.0,0.0001634,2]
[352047185,1738899048743,-151.739616,0.0001634,2]
[352047186,1738899048753,-151.0,0.0001634,2]
[352047187,1738899048763,-289.028488,0.0001634,2]
[352047188,1738899048774,-151.0,0.0001634,2]
[352047189,1738899048783,-151.0,0.0001634,2]
[352047190,1738899048794,-151.0,0.0001634,2]
[352047191,1738899048804,-151.0,0.0001634,2]
[352047192,1738899048814,-151.0,0.0001634,2]
[352047193,1738899048825,-264.586561,0.0001634,2]
[352047194,1738899048835,-264.586561,0.0001634,2]
[352047195,1738899048845,-151.0,0.0001634,2]
[352047196,1738899048855,-151.0,0.0001634,2]
[352047197,1738899048865,-151.0,0.00016344,2]
[352047198,1738899048874,-151.0,0.00016344,2]
[352047199,1738899048885,-151.0,0.00016344,2]
[352047200,1738899048895,-3000.0,0.0001635,2]
[352047201,1738899048904,-1163.77342583,0.00016355,2]
[352047202,1738899048914,-3000.0,0.0001636,2]
[352047203,1738899048923,-3000.0,0.0001637,2]
[352047204,1738899048932,-3000.0,0.0001638,2]
[352047205,1738899048942,-214.303582,0.0001638,2]
[352047206,1738899048952,-151.0,0.0001638,2]
[352047207,1738899048961,-151.0,0.0001638,2]
[352047208,1738899048971,-308.09967,0.0001638,2]
[352047209,1738899048981,-308.09967,0.0001638,2]
[352047210,1738899048990,-174.904199,0.0001638,2]
[352047211,1738899049000,-174.904199,0.0001638,2]
[352047212,1738899049010,-3000.0,0.0001639,2]
[352047213,1738899049021,-3000.0,0.000164,2]
[352047214,1738899049031,-3000.0,0.0001641,2]
[352047215,1738899049040,-3000.0,0.0001642,2]
[352047216,1738899049051,-3000.0,0.0001643,2]
[352047217,1738899049061,-98322.54191819,0.00016437,2]
[352047218,1738899049071,-121467.75796173,0.00016437,2]
[352047219,1738899049082,-107289.49829158,0.00016438,2]